[Event "*** SCC Grand Prix: Titled Tuesday Blitz"]
[Site "Chess.com"]
[Date "2020.06.23"]
[Round "2"]
[White "Man-Chuk"]
[Black "GM_LOADING"]
[Result "0-1"]
[WhiteElo "2838"]
[BlackElo "2568"]
[TimeControl "180+1"]
[EndTime "10:20:20 PDT"]
[Termination "GM_LOADING won by checkmate"]

1. c4 {[%clk 0:03:00.9]} 1... e6 {[%clk 0:02:59.6]} 2. Nc3 {[%clk 0:03:00.7]}
2... d5 {[%clk 0:02:56]} 3. d4 {[%clk 0:03:00.8]} 3... Bb4 {[%clk 0:02:54.3]} 4.
e3 {[%clk 0:02:58.3]} 4... Nf6 {[%clk 0:02:48.5]} 5. a3 {[%clk 0:02:50.5]} 5...
Bxc3+ {[%clk 0:02:46.6]} 6. bxc3 {[%clk 0:02:51.4]} 6... O-O {[%clk 0:02:43.1]}
7. cxd5 {[%clk 0:02:51.6]} 7... exd5 {[%clk 0:02:42.8]} 8. Bd3 {[%clk
0:02:51.9]} 8... b6 {[%clk 0:02:41.5]} 9. Ne2 {[%clk 0:02:51.4]} 9... Ba6 {[%clk
0:02:41.3]} 10. Bxa6 {[%clk 0:02:43.1]} 10... Nxa6 {[%clk 0:02:41]} 11. Qd3
{[%clk 0:02:43.7]} 11... Nb8 {[%clk 0:02:32.8]} 12. c4 {[%clk 0:02:41.7]} 12...
c5 {[%clk 0:02:23.2]} 13. O-O {[%clk 0:02:38.5]} 13... dxc4 {[%clk 0:02:13.2]}
14. Qxc4 {[%clk 0:02:38.2]} 14... cxd4 {[%clk 0:02:13.9]} 15. Nxd4 {[%clk
0:02:35.4]} 15... Nbd7 {[%clk 0:02:12.7]} 16. Bb2 {[%clk 0:02:22.7]} 16... Rc8
{[%clk 0:02:08.8]} 17. Qe2 {[%clk 0:02:12.5]} 17... Nc5 {[%clk 0:01:30]} 18.
Rfd1 {[%clk 0:02:11.7]} 18... Qe8 {[%clk 0:01:13]} 19. Rac1 {[%clk 0:02:00]}
19... a6 {[%clk 0:00:37.1]} 20. h3 {[%clk 0:01:52.5]} 20... Qe4 {[%clk
0:00:33.2]} 21. Nf3 {[%clk 0:01:35.3]} 21... Qe6 {[%clk 0:00:26.1]} 22. Bd4
{[%clk 0:01:14.1]} 22... Nfe4 {[%clk 0:00:25.3]} 23. Rc2 {[%clk 0:00:56.2]}
23... b5 {[%clk 0:00:13.7]} 24. Rdc1 {[%clk 0:00:39.9]} 24... Nb3 {[%clk
0:00:12.8]} 25. Rxc8 {[%clk 0:00:40]} 25... Rxc8 {[%clk 0:00:13.7]} 26. Rxc8+
{[%clk 0:00:40.3]} 26... Qxc8 {[%clk 0:00:14]} 27. Be5 {[%clk 0:00:30.5]} 27...
Qc4 {[%clk 0:00:10.2]} 28. Qb2 {[%clk 0:00:13.5]} 28... f6 {[%clk 0:00:10.4]}
29. Bf4 {[%clk 0:00:11]} 29... Qc1+ {[%clk 0:00:10.7]} 30. Qxc1 {[%clk
0:00:11.4]} 30... Nxc1 {[%clk 0:00:11.6]} 31. Nd4 {[%clk 0:00:10.4]} 31... Nd3
{[%clk 0:00:10.6]} 32. f3 {[%clk 0:00:09.3]} 32... Nd2 {[%clk 0:00:08.5]} 33.
Bd6 {[%clk 0:00:03.2]} 33... Nc4 {[%clk 0:00:08.8]} 34. Bb4 {[%clk 0:00:03.8]}
34... Nxe3 {[%clk 0:00:08.8]} 35. Ne6 {[%clk 0:00:02.7]} 35... Nc4 {[%clk
0:00:06.3]} 36. Nc7 {[%clk 0:00:02.4]} 36... a5 {[%clk 0:00:06.7]} 37. Bc3
{[%clk 0:00:01.9]} 37... Nxa3 {[%clk 0:00:05.7]} 38. Bxa5 {[%clk 0:00:01.9]}
38... b4 {[%clk 0:00:06.3]} 39. Nd5 {[%clk 0:00:02.6]} 39... b3 {[%clk
0:00:06.7]} 40. Bc3 {[%clk 0:00:03.5]} 40... b2 {[%clk 0:00:07]} 41. Bxb2 {[%clk
0:00:04.2]} 41... Nxb2 {[%clk 0:00:07.9]} 42. Ne7+ {[%clk 0:00:05]} 42... Kf7
{[%clk 0:00:07.7]} 43. Nf5 {[%clk 0:00:05.9]} 43... Nbc4 {[%clk 0:00:08.3]} 44.
g4 {[%clk 0:00:06.2]} 44... Nb5 {[%clk 0:00:08.5]} 45. Kg2 {[%clk 0:00:06.4]}
45... Nbd6 {[%clk 0:00:08.2]} 46. Nd4 {[%clk 0:00:06.5]} 46... Kg6 {[%clk
0:00:08.6]} 47. h4 {[%clk 0:00:06.8]} 47... Ne3+ {[%clk 0:00:08.9]} 48. Kg3
{[%clk 0:00:07.1]} 48... f5 {[%clk 0:00:08.8]} 49. h5+ {[%clk 0:00:07.4]} 49...
Kf6 {[%clk 0:00:08.6]} 50. Nc6 {[%clk 0:00:02.9]} 50... Nd5 {[%clk 0:00:07.7]}
51. Nd4 {[%clk 0:00:01.7]} 51... g6 {[%clk 0:00:04.2]} 52. hxg6 {[%clk
0:00:01.6]} 52... hxg6 {[%clk 0:00:05.1]} 53. Nc6 {[%clk 0:00:01.5]} 53... Kg5
{[%clk 0:00:04.6]} 54. gxf5 {[%clk 0:00:01.7]} 54... Nxf5+ {[%clk 0:00:04.5]}
55. Kf2 {[%clk 0:00:02.2]} 55... Kf4 {[%clk 0:00:05]} 56. Na5 {[%clk 0:00:02.5]}
56... Nd4 {[%clk 0:00:04.3]} 57. Nc4 {[%clk 0:00:03]} 57... Nxf3 {[%clk
0:00:03.5]} 58. Nd6 {[%clk 0:00:03.5]} 58... Ne5 {[%clk 0:00:03.5]} 59. Ne8
{[%clk 0:00:02.2]} 59... Kf5 {[%clk 0:00:02.4]} 60. Ng7+ {[%clk 0:00:01.9]}
60... Kf6 {[%clk 0:00:02]} 61. Ne8+ {[%clk 0:00:02.5]} 61... Ke7 {[%clk
0:00:02.4]} 62. Ng7 {[%clk 0:00:03.1]} 62... Kf7 {[%clk 0:00:02.2]} 63. Nh5
{[%clk 0:00:03.7]} 63... gxh5 {[%clk 0:00:02.3]} 64. Kg3 {[%clk 0:00:04.6]}
64... Kg6 {[%clk 0:00:03.2]} 65. Kh4 {[%clk 0:00:05.5]} 65... Kh6 {[%clk
0:00:04.1]} 66. Kg3 {[%clk 0:00:05.9]} 66... Kg5 {[%clk 0:00:05]} 67. Kh3 {[%clk
0:00:06.1]} 67... Nf4+ {[%clk 0:00:05.6]} 68. Kg3 {[%clk 0:00:06.4]} 68... Nf7
{[%clk 0:00:06.5]} 69. Kf3 {[%clk 0:00:06.2]} 69... h4 {[%clk 0:00:07.4]} 70.
Kf2 {[%clk 0:00:06.1]} 70... Kg4 {[%clk 0:00:08.3]} 71. Kg1 {[%clk 0:00:07]}
71... h3 {[%clk 0:00:08.3]} 72. Kh2 {[%clk 0:00:07.9]} 72... Kh4 {[%clk
0:00:08.7]} 73. Kg1 {[%clk 0:00:08.8]} 73... Kg3 {[%clk 0:00:09]} 74. Kh1 {[%clk
0:00:09.7]} 74... Nd3 {[%clk 0:00:07.3]} 75. Kg1 {[%clk 0:00:10.6]} 75... h2+
{[%clk 0:00:07.7]} 76. Kh1 {[%clk 0:00:11.5]} 76... Nf2# {[%clk 0:00:07.5]} 0-1

[Event "*** SCC Grand Prix: Titled Tuesday Blitz"]
[Site "Chess.com"]
[Date "2020.06.23"]
[Round "2"]
[White "Herracek"]
[Black "GeorgMeier"]
[Result "0-1"]
[WhiteElo "2568"]
[BlackElo "2906"]
[TimeControl "180+1"]
[EndTime "10:20:27 PDT"]
[Termination "GeorgMeier won by resignation"]

1. c4 {[%clk 0:03:00.9]} 1... b6 {[%clk 0:03:00]} 2. Nf3 {[%clk 0:03:00.3]} 2...
Bb7 {[%clk 0:03:00.4]} 3. g3 {[%clk 0:03:00.8]} 3... Bxf3 {[%clk 0:02:59.8]} 4.
exf3 {[%clk 0:03:01.7]} 4... c5 {[%clk 0:03:00.5]} 5. d4 {[%clk 0:03:02.3]} 5...
Nc6 {[%clk 0:03:00.8]} 6. d5 {[%clk 0:03:02.2]} 6... Nd4 {[%clk 0:03:00.6]} 7.
Be3 {[%clk 0:03:02.3]} 7... Nf5 {[%clk 0:03:00.9]} 8. Bd2 {[%clk 0:02:56.7]}
8... g6 {[%clk 0:03:00.7]} 9. Bc3 {[%clk 0:02:56.9]} 9... Bg7 {[%clk 0:03:01.3]}
10. Bxg7 {[%clk 0:02:56.3]} 10... Nxg7 {[%clk 0:03:02.2]} 11. Bd3 {[%clk
0:02:56.5]} 11... Nh6 {[%clk 0:02:48.4]} 12. Nc3 {[%clk 0:02:42.3]} 12... Nhf5
{[%clk 0:02:47]} 13. Bxf5 {[%clk 0:02:41.9]} 13... Nxf5 {[%clk 0:02:46.9]} 14.
O-O {[%clk 0:02:37]} 14... O-O {[%clk 0:02:47]} 15. Re1 {[%clk 0:02:35.5]} 15...
a6 {[%clk 0:02:46.6]} 16. a4 {[%clk 0:02:34.6]} 16... Rb8 {[%clk 0:02:45.6]} 17.
Qd3 {[%clk 0:02:32.3]} 17... e6 {[%clk 0:02:36.4]} 18. Re4 {[%clk 0:02:25.8]}
18... Qf6 {[%clk 0:02:36.1]} 19. Rf4 {[%clk 0:02:22]} 19... Qe5 {[%clk
0:02:32.8]} 20. Kf1 {[%clk 0:02:15.4]} 20... Nd4 {[%clk 0:02:23.4]} 21. Re1
{[%clk 0:02:07]} 21... Qg7 {[%clk 0:02:23.2]} 22. Ne2 {[%clk 0:01:49.2]} 22...
Nf5 {[%clk 0:02:09.3]} 23. b3 {[%clk 0:01:33.6]} 23... Rfe8 {[%clk 0:01:58]} 24.
Re4 {[%clk 0:01:26.7]} 24... Qb2 {[%clk 0:01:51.9]} 25. Kg2 {[%clk 0:01:23.8]}
25... exd5 {[%clk 0:01:41.1]} 26. Qxd5 {[%clk 0:01:07.2]} 26... Rxe4 {[%clk
0:01:18.2]} 27. fxe4 {[%clk 0:01:05.2]} 27... Ng7 {[%clk 0:01:18.4]} 28. Nf4
{[%clk 0:00:50.5]} 28... Ne6 {[%clk 0:01:16.9]} 29. Nxe6 {[%clk 0:00:39.3]}
29... dxe6 {[%clk 0:01:14.8]} 30. Qd6 {[%clk 0:00:39.7]} 30... Ra8 {[%clk
0:00:56.6]} 31. Qxb6 {[%clk 0:00:39.3]} 31... Qd2 {[%clk 0:00:54.5]} 32. Re3
{[%clk 0:00:39.2]} 32... Qd4 {[%clk 0:00:54.6]} 33. Qc6 {[%clk 0:00:38.1]} 33...
Ra7 {[%clk 0:00:51.5]} 34. Rf3 {[%clk 0:00:36.6]} 34... h5 {[%clk 0:00:49.4]}
35. h4 {[%clk 0:00:36.2]} 35... Kg7 {[%clk 0:00:48.7]} 36. a5 {[%clk 0:00:35]}
36... Kg8 {[%clk 0:00:44.1]} 37. Qb6 {[%clk 0:00:31.4]} 37... Rd7 {[%clk
0:00:43.9]} 38. Qxa6 {[%clk 0:00:30.7]} 38... Kg7 {[%clk 0:00:40.4]} 39. Qc6
{[%clk 0:00:30]} 39... Rd6 {[%clk 0:00:40.4]} 40. Qc7 {[%clk 0:00:26.7]} 40...
Rd7 {[%clk 0:00:40.8]} 41. Qf4 {[%clk 0:00:26.3]} 41... Ra7 {[%clk 0:00:37.7]}
42. e5 {[%clk 0:00:21.7]} 42... Qxf4 {[%clk 0:00:36.4]} 43. gxf4 {[%clk
0:00:20.7]} 43... Rxa5 {[%clk 0:00:37.3]} 44. Rd3 {[%clk 0:00:20.8]} 44... Ra1
{[%clk 0:00:33.3]} 45. Rd7 {[%clk 0:00:19.8]} 45... Rc1 {[%clk 0:00:27.5]} 46.
Rc7 {[%clk 0:00:16.9]} 46... Rc3 {[%clk 0:00:27.4]} 47. Rxc5 {[%clk 0:00:17.2]}
47... Rxb3 {[%clk 0:00:27.9]} 48. Rc8 {[%clk 0:00:17.2]} 48... Rc3 {[%clk
0:00:25]} 49. c5 {[%clk 0:00:17.5]} 49... Rd3 {[%clk 0:00:23.1]} 50. c6 {[%clk
0:00:16]} 50... Rc3 {[%clk 0:00:23.4]} 51. Kf1 {[%clk 0:00:16.5]} 51... Rc4
{[%clk 0:00:22.1]} 52. Ke2 {[%clk 0:00:15.9]} 52... Rc5 {[%clk 0:00:20.6]} 53.
Kd3 {[%clk 0:00:16]} 53... Rc1 {[%clk 0:00:20.7]} 54. Kd4 {[%clk 0:00:16.3]}
54... Rc2 {[%clk 0:00:20.6]} 55. Kd3 {[%clk 0:00:15.3]} 55... Rc1 {[%clk
0:00:21]} 56. Kd4 {[%clk 0:00:13.2]} 56... Rc2 {[%clk 0:00:21.1]} 57. c7 {[%clk
0:00:13.5]} 57... Rc1 {[%clk 0:00:21.1]} 58. f3 {[%clk 0:00:13.5]} 58... Rc2
{[%clk 0:00:21.3]} 59. Ke4 {[%clk 0:00:13.8]} 59... Rc4+ {[%clk 0:00:20.9]} 60.
Kd3 {[%clk 0:00:14.1]} 60... Rc6 {[%clk 0:00:21.1]} 61. Kd4 {[%clk 0:00:14.4]}
61... Rc1 {[%clk 0:00:21]} 62. Ke4 {[%clk 0:00:13.9]} 62... Rc4+ {[%clk
0:00:20.2]} 63. Ke3 {[%clk 0:00:14.2]} 63... Rc6 {[%clk 0:00:20.5]} 64. f5
{[%clk 0:00:14.5]} 64... exf5 {[%clk 0:00:15.8]} 65. Kd4 {[%clk 0:00:14.7]}
65... Rc1 {[%clk 0:00:11.5]} 66. f4 {[%clk 0:00:15.1]} 66... Rc2 {[%clk
0:00:10.9]} 67. Kd5 {[%clk 0:00:15.5]} 67... Rc1 {[%clk 0:00:11.4]} 68. Kd6
{[%clk 0:00:16.1]} 68... Rd1+ {[%clk 0:00:11.2]} 69. Ke7 {[%clk 0:00:16.6]}
69... Rc1 {[%clk 0:00:11.4]} 70. Kd7 {[%clk 0:00:11.9]} 70... Rd1+ {[%clk
0:00:11.8]} 71. Ke8 {[%clk 0:00:12.2]} 71... Rc1 {[%clk 0:00:10.4]} 72. Rd8
{[%clk 0:00:04.4]} 72... Rxc7 {[%clk 0:00:09.5]} 73. Rd7 {[%clk 0:00:03.9]}
73... Rxd7 {[%clk 0:00:06.6]} 74. Kxd7 {[%clk 0:00:04.8]} 74... g5 {[%clk
0:00:07.3]} 75. fxg5 {[%clk 0:00:04.9]} 75... f4 {[%clk 0:00:07.6]} 76. g6
{[%clk 0:00:04.5]} 76... Kxg6 {[%clk 0:00:07.7]} 77. Ke7 {[%clk 0:00:04.6]}
77... f3 {[%clk 0:00:07.6]} 78. e6 {[%clk 0:00:05.5]} 78... fxe6 {[%clk
0:00:08.2]} 79. Kxe6 {[%clk 0:00:05.7]} 79... f2 {[%clk 0:00:08.3]} 80. Ke5
{[%clk 0:00:06.6]} 80... f1=Q {[%clk 0:00:08.5]} 0-1

[Event "*** SCC Grand Prix: Titled Tuesday Blitz"]
[Site "Chess.com"]
[Date "2020.06.23"]
[Round "2"]
[White "j_coca"]
[Black "Kavyev_Ruslan"]
[Result "0-1"]
[WhiteElo "2195"]
[BlackElo "2541"]
[TimeControl "180+1"]
[EndTime "10:20:31 PDT"]
[Termination "Kavyev_Ruslan won on time"]

1. f4 {[%clk 0:03:00.7]} 1... d5 {[%clk 0:02:59.9]} 2. Nf3 {[%clk 0:03:00.4]}
2... Nf6 {[%clk 0:03:00.3]} 3. e3 {[%clk 0:03:00.5]} 3... g6 {[%clk 0:03:00.6]}
4. d4 {[%clk 0:03:00.7]} 4... Bg7 {[%clk 0:03:01.3]} 5. c3 {[%clk 0:03:01.1]}
5... c5 {[%clk 0:03:01.8]} 6. Bd3 {[%clk 0:03:01.3]} 6... O-O {[%clk 0:03:02.3]}
7. O-O {[%clk 0:03:01.3]} 7... Nc6 {[%clk 0:03:01.9]} 8. Nbd2 {[%clk 0:03:01.6]}
8... Qc7 {[%clk 0:03:02.3]} 9. Qe2 {[%clk 0:03:01.3]} 9... Rb8 {[%clk
0:03:02.9]} 10. Ne5 {[%clk 0:03:01.2]} 10... a6 {[%clk 0:03:02.6]} 11. h3 {[%clk
0:03:00.8]} 11... b5 {[%clk 0:03:02.9]} 12. g4 {[%clk 0:03:00.8]} 12... b4
{[%clk 0:03:02.5]} 13. Nxc6 {[%clk 0:02:54.2]} 13... Qxc6 {[%clk 0:03:02.2]} 14.
Nf3 {[%clk 0:02:53.6]} 14... Ne4 {[%clk 0:03:01.6]} 15. Bd2 {[%clk 0:02:53]}
15... bxc3 {[%clk 0:02:51.3]} 16. Bxc3 {[%clk 0:02:50.2]} 16... Qc7 {[%clk
0:02:16.4]} 17. Bxe4 {[%clk 0:02:42.1]} 17... dxe4 {[%clk 0:02:16.3]} 18. Nd2
{[%clk 0:02:38.1]} 18... Bb7 {[%clk 0:02:15.2]} 19. Rac1 {[%clk 0:02:31.9]}
19... Bc6 {[%clk 0:01:59.5]} 20. dxc5 {[%clk 0:02:20.3]} 20... Bb5 {[%clk
0:01:59.4]} 21. Nc4 {[%clk 0:02:19.9]} 21... Bxc3 {[%clk 0:01:52.9]} 22. Rxc3
{[%clk 0:02:19.6]} 22... Qxc5 {[%clk 0:01:53.3]} 23. b3 {[%clk 0:02:12.7]} 23...
Rfd8 {[%clk 0:01:39.8]} 24. Rfc1 {[%clk 0:02:09.7]} 24... Rbc8 {[%clk
0:01:36.1]} 25. Kf2 {[%clk 0:02:08.8]} 25... Qb4 {[%clk 0:01:16.3]} 26. Kg3
{[%clk 0:01:48.9]} 26... Rc7 {[%clk 0:00:59.3]} 27. Qc2 {[%clk 0:01:29]} 27...
Bxc4 {[%clk 0:00:54.4]} 28. Qxe4 {[%clk 0:01:01]} 28... a5 {[%clk 0:00:40.5]}
29. Rxc4 {[%clk 0:00:57.7]} 29... Rxc4 {[%clk 0:00:40.5]} 30. Qxc4 {[%clk
0:00:52.2]} 30... Qd2 {[%clk 0:00:40.5]} 31. Qc3 {[%clk 0:00:48.2]} 31... Qxa2
{[%clk 0:00:37.8]} 32. Rc2 {[%clk 0:00:43.8]} 32... Qb1 {[%clk 0:00:35.7]} 33.
h4 {[%clk 0:00:24.4]} 33... Qg1+ {[%clk 0:00:34.7]} 34. Rg2 {[%clk 0:00:23.3]}
34... Qd1 {[%clk 0:00:33.7]} 35. h5 {[%clk 0:00:20.8]} 35... Qd3 {[%clk
0:00:23.6]} 36. Qe5 {[%clk 0:00:18.4]} 36... Qd6 {[%clk 0:00:17.7]} 37. Qxd6
{[%clk 0:00:16.6]} 37... Rxd6 {[%clk 0:00:17.9]} 38. Ra2 {[%clk 0:00:17.2]}
38... Rd3 {[%clk 0:00:17.4]} 39. Kf3 {[%clk 0:00:17.4]} 39... Rd5 {[%clk
0:00:16.2]} 40. hxg6 {[%clk 0:00:16.8]} 40... hxg6 {[%clk 0:00:17.1]} 41. Ke4
{[%clk 0:00:17.2]} 41... Rb5 {[%clk 0:00:17.8]} 42. Ra4 {[%clk 0:00:16]} 42...
f6 {[%clk 0:00:15.8]} 43. f5 {[%clk 0:00:15.6]} 43... gxf5+ {[%clk 0:00:14.7]}
44. gxf5 {[%clk 0:00:16.5]} 44... Kf7 {[%clk 0:00:15.3]} 45. Kf4 {[%clk
0:00:16.8]} 45... Ke8 {[%clk 0:00:15.5]} 46. e4 {[%clk 0:00:16.9]} 46... Kd7
{[%clk 0:00:16.1]} 47. Ra3 {[%clk 0:00:16.6]} 47... Kc6 {[%clk 0:00:16.4]} 48.
Ke3 {[%clk 0:00:17.2]} 48... Kc5 {[%clk 0:00:16.7]} 49. Kd3 {[%clk 0:00:17.2]}
49... Kb4 {[%clk 0:00:17.1]} 50. Ra1 {[%clk 0:00:16.9]} 50... Kxb3 {[%clk
0:00:17.6]} 51. Rb1+ {[%clk 0:00:17.1]} 51... Ka4 {[%clk 0:00:18.1]} 52. Ra1+
{[%clk 0:00:17.7]} 52... Kb4 {[%clk 0:00:18.7]} 53. Rb1+ {[%clk 0:00:18.3]}
53... Kc5 {[%clk 0:00:19.3]} 54. Rc1+ {[%clk 0:00:18.6]} 54... Kd6 {[%clk
0:00:19.7]} 55. Rc8 {[%clk 0:00:18.4]} 55... Rb3+ {[%clk 0:00:18.6]} 56. Kc4
{[%clk 0:00:18]} 56... Rb4+ {[%clk 0:00:18.6]} 57. Kd3 {[%clk 0:00:18.4]} 57...
Ke5 {[%clk 0:00:18.2]} 58. Rc5+ {[%clk 0:00:18]} 58... Kf4 {[%clk 0:00:18.2]}
59. Rxa5 {[%clk 0:00:18.2]} 59... Rxe4 {[%clk 0:00:17.4]} 60. Ra7 {[%clk
0:00:16.7]} 60... Re5 {[%clk 0:00:17.3]} 61. Kd4 {[%clk 0:00:14.8]} 61... Kxf5
{[%clk 0:00:17.6]} 62. Rd7 {[%clk 0:00:13.8]} 62... Re1 {[%clk 0:00:17]} 63. Kc3
{[%clk 0:00:14.2]} 63... e5 {[%clk 0:00:17.1]} 64. Kd2 {[%clk 0:00:13.9]} 64...
Re4 {[%clk 0:00:16.2]} 65. Rh7 {[%clk 0:00:12.9]} 65... Ra4 {[%clk 0:00:15.5]}
66. Ke3 {[%clk 0:00:12.6]} 66... Ra3+ {[%clk 0:00:15.5]} 67. Ke2 {[%clk
0:00:13]} 67... Ke6 {[%clk 0:00:15.5]} 68. Rh8 {[%clk 0:00:12.7]} 68... f5
{[%clk 0:00:15.4]} 69. Rd8 {[%clk 0:00:11.4]} 69... f4 {[%clk 0:00:15.2]} 70.
Kf2 {[%clk 0:00:10.4]} 70... Kf5 {[%clk 0:00:15.6]} 71. Rb8 {[%clk 0:00:09]}
71... Ra5 {[%clk 0:00:13.7]} 72. Ke2 {[%clk 0:00:06]} 72... Ra2+ {[%clk
0:00:13.7]} 73. Kd3 {[%clk 0:00:05.5]} 73... e4+ {[%clk 0:00:13.7]} 74. Kd4
{[%clk 0:00:05]} 74... Rd2+ {[%clk 0:00:13]} 75. Kc3 {[%clk 0:00:05.2]} 75...
Rd7 {[%clk 0:00:13.2]} 76. Re8 {[%clk 0:00:03.2]} 76... f3 {[%clk 0:00:13]} 77.
Kc2 {[%clk 0:00:02.7]} 77... Kf4 {[%clk 0:00:11.5]} 78. Kc3 {[%clk 0:00:01.4]}
78... e3 {[%clk 0:00:11.6]} 79. Rf8+ {[%clk 0:00:01.7]} 79... Kg3 {[%clk
0:00:11.8]} 80. Re8 {[%clk 0:00:02]} 80... Kf2 {[%clk 0:00:12.3]} 81. Kc2 {[%clk
0:00:02.2]} 81... e2 {[%clk 0:00:12.7]} 82. Re7 {[%clk 0:00:01.9]} 82... e1=Q
{[%clk 0:00:13.1]} 0-1

[Event "*** SCC Grand Prix: Titled Tuesday Blitz"]
[Site "Chess.com"]
[Date "2020.06.23"]
[Round "2"]
[White "RestartingChess"]
[Black "Fortitudine"]
[Result "1/2-1/2"]
[WhiteElo "2452"]
[BlackElo "2260"]
[TimeControl "180+1"]
[EndTime "10:20:31 PDT"]
[Termination "Game drawn by stalemate"]

1. e4 {[%clk 0:03:00.9]} 1... c5 {[%clk 0:02:56.9]} 2. Nf3 {[%clk 0:03:01.3]}
2... d6 {[%clk 0:02:56.7]} 3. Bb5+ {[%clk 0:03:00.4]} 3... Nd7 {[%clk
0:02:55.9]} 4. a4 {[%clk 0:03:00.3]} 4... g6 {[%clk 0:02:54.4]} 5. O-O {[%clk
0:02:59.8]} 5... Bg7 {[%clk 0:02:53.7]} 6. Nc3 {[%clk 0:02:59.5]} 6... Nf6
{[%clk 0:02:51.7]} 7. d3 {[%clk 0:03:00]} 7... O-O {[%clk 0:02:50.9]} 8. Bxd7
{[%clk 0:03:00.5]} 8... Bxd7 {[%clk 0:02:50.1]} 9. h3 {[%clk 0:03:01.4]} 9... b6
{[%clk 0:02:48.6]} 10. Be3 {[%clk 0:03:00.5]} 10... a6 {[%clk 0:02:48.6]} 11.
Qd2 {[%clk 0:03:00.6]} 11... b5 {[%clk 0:02:46.6]} 12. axb5 {[%clk 0:02:59]}
12... axb5 {[%clk 0:02:47.5]} 13. Bh6 {[%clk 0:02:58.2]} 13... b4 {[%clk
0:02:44.5]} 14. Ne2 {[%clk 0:02:22.9]} 14... Bc6 {[%clk 0:02:26.4]} 15. Bxg7
{[%clk 0:02:22.3]} 15... Kxg7 {[%clk 0:02:27.3]} 16. Ng3 {[%clk 0:02:18.1]}
16... h6 {[%clk 0:02:18.3]} 17. h4 {[%clk 0:02:14.6]} 17... Qd7 {[%clk
0:02:10.4]} 18. e5 {[%clk 0:02:04.6]} 18... Nd5 {[%clk 0:01:58.5]} 19. d4 {[%clk
0:01:40.7]} 19... c4 {[%clk 0:01:29.7]} 20. Rae1 {[%clk 0:01:25.3]} 20... c3
{[%clk 0:01:13]} 21. bxc3 {[%clk 0:01:25]} 21... bxc3 {[%clk 0:01:12.6]} 22. Qc1
{[%clk 0:01:19.3]} 22... Bb5 {[%clk 0:01:11.2]} 23. Re4 {[%clk 0:00:54.9]} 23...
Bxf1 {[%clk 0:01:09.1]} 24. Kxf1 {[%clk 0:00:55.8]} 24... Qb5+ {[%clk
0:00:44.3]} 25. Kg1 {[%clk 0:00:33.7]} 25... Qb2 {[%clk 0:00:44.1]} 26. Re1
{[%clk 0:00:34]} 26... Qxc1 {[%clk 0:00:41.6]} 27. Rxc1 {[%clk 0:00:34.9]} 27...
Ra2 {[%clk 0:00:40.4]} 28. Ne2 {[%clk 0:00:25.8]} 28... Rb8 {[%clk 0:00:35.2]}
29. Kh2 {[%clk 0:00:24.5]} 29... Rbb2 {[%clk 0:00:34.3]} 30. Ne1 {[%clk
0:00:25.2]} 30... dxe5 {[%clk 0:00:34]} 31. dxe5 {[%clk 0:00:24.6]} 31... Ra3
{[%clk 0:00:32.7]} 32. Kg3 {[%clk 0:00:22.8]} 32... e6 {[%clk 0:00:31.8]} 33. f4
{[%clk 0:00:22.7]} 33... Rba2 {[%clk 0:00:30.3]} 34. Kf3 {[%clk 0:00:20]} 34...
h5 {[%clk 0:00:30.6]} 35. Nd3 {[%clk 0:00:17.5]} 35... Ra1 {[%clk 0:00:28.4]}
36. Rxa1 {[%clk 0:00:16.6]} 36... Rxa1 {[%clk 0:00:29.3]} 37. Nec1 {[%clk
0:00:16.6]} 37... Ra4 {[%clk 0:00:27.3]} 38. g3 {[%clk 0:00:16.7]} 38... Ra1
{[%clk 0:00:24.2]} 39. Kf2 {[%clk 0:00:15.7]} 39... Nb4 {[%clk 0:00:23.6]} 40.
Ke3 {[%clk 0:00:13.2]} 40... Nxc2+ {[%clk 0:00:21.4]} 41. Ke4 {[%clk 0:00:11.7]}
41... Na3 {[%clk 0:00:19.7]} 42. Kd4 {[%clk 0:00:11.8]} 42... c2 {[%clk
0:00:18.4]} 43. Kc3 {[%clk 0:00:12.3]} 43... Rb1 {[%clk 0:00:18.1]} 44. Kd2
{[%clk 0:00:10.9]} 44... Rb8 {[%clk 0:00:17.2]} 45. Ne2 {[%clk 0:00:08.4]} 45...
Rd8 {[%clk 0:00:17.3]} 46. Nc1 {[%clk 0:00:09]} 46... Rc8 {[%clk 0:00:16.2]} 47.
Ne2 {[%clk 0:00:08.8]} 47... Nb5 {[%clk 0:00:16.2]} 48. Nec1 {[%clk 0:00:09.7]}
48... Nd4 {[%clk 0:00:16.2]} 49. Ke3 {[%clk 0:00:10.4]} 49... Nb5 {[%clk
0:00:12.3]} 50. Kd2 {[%clk 0:00:10.7]} 50... Nd4 {[%clk 0:00:11.7]} 51. Ke3
{[%clk 0:00:11.2]} 51... Nc6 {[%clk 0:00:11.5]} 52. Kd2 {[%clk 0:00:11.5]} 52...
Na5 {[%clk 0:00:11.9]} 53. Ke3 {[%clk 0:00:12.2]} 53... Nc4+ {[%clk 0:00:12.2]}
54. Ke2 {[%clk 0:00:13.1]} 54... Na3 {[%clk 0:00:11.9]} 55. Kd2 {[%clk
0:00:13.4]} 55... Nb1+ {[%clk 0:00:12.2]} 56. Ke3 {[%clk 0:00:13.6]} 56... Nc3
{[%clk 0:00:12.7]} 57. Kd2 {[%clk 0:00:14.5]} 57... Na4 {[%clk 0:00:13.3]} 58.
Ke3 {[%clk 0:00:14.3]} 58... Kg8 {[%clk 0:00:13.9]} 59. Kd2 {[%clk 0:00:14.9]}
59... Nb6 {[%clk 0:00:13.4]} 60. Ke3 {[%clk 0:00:15.4]} 60... Nc4+ {[%clk
0:00:13.5]} 61. Ke2 {[%clk 0:00:16.3]} 61... Rb8 {[%clk 0:00:13.6]} 62. Kf3
{[%clk 0:00:15]} 62... Rb1 {[%clk 0:00:13.3]} 63. Ke2 {[%clk 0:00:15.6]} 63...
Nb2 {[%clk 0:00:13.4]} 64. Kd2 {[%clk 0:00:14.4]} 64... Nxd3 {[%clk 0:00:13.3]}
65. Nxd3 {[%clk 0:00:15.1]} 65... Rg1 {[%clk 0:00:13.1]} 66. Kxc2 {[%clk
0:00:15.5]} 66... Rxg3 {[%clk 0:00:13.4]} 67. Kd2 {[%clk 0:00:16.4]} 67... Rg4
{[%clk 0:00:13.3]} 68. Ke3 {[%clk 0:00:17.3]} 68... Rxh4 {[%clk 0:00:13.7]} 69.
Nf2 {[%clk 0:00:16.6]} 69... Rh2 {[%clk 0:00:13.9]} 70. Ne4 {[%clk 0:00:17.1]}
70... Rh1 {[%clk 0:00:13.7]} 71. Kf3 {[%clk 0:00:17.5]} 71... Rf1+ {[%clk
0:00:13.6]} 72. Kg3 {[%clk 0:00:18.2]} 72... Re1 {[%clk 0:00:13.8]} 73. Nf6+
{[%clk 0:00:18.1]} 73... Kg7 {[%clk 0:00:14.3]} 74. Kh4 {[%clk 0:00:19]} 74...
Rh1+ {[%clk 0:00:14.1]} 75. Kg5 {[%clk 0:00:18.6]} 75... Rg1+ {[%clk 0:00:14.2]}
76. Kh4 {[%clk 0:00:19.1]} 76... Rg4+ {[%clk 0:00:13.7]} 77. Nxg4 {[%clk
0:00:18.6]} 77... hxg4 {[%clk 0:00:14.4]} 78. Kxg4 {[%clk 0:00:19.5]} 78... f6
{[%clk 0:00:14.9]} 79. Kh4 {[%clk 0:00:18.1]} 79... f5 {[%clk 0:00:12.9]} 80.
Kg5 {[%clk 0:00:18.2]} 80... Kh7 {[%clk 0:00:13.5]} 81. Kf6 {[%clk 0:00:18.8]}
81... Kh6 {[%clk 0:00:11]} 82. Kxe6 {[%clk 0:00:19.2]} 82... g5 {[%clk
0:00:11.5]} 83. Kxf5 {[%clk 0:00:19.3]} 83... gxf4 {[%clk 0:00:11]} 84. Kxf4
{[%clk 0:00:19.8]} 84... Kg6 {[%clk 0:00:11.6]} 85. Ke4 {[%clk 0:00:19.7]} 85...
Kf7 {[%clk 0:00:12.1]} 86. Kd5 {[%clk 0:00:19.9]} 86... Ke7 {[%clk 0:00:12.3]}
87. Kd4 {[%clk 0:00:20.3]} 87... Ke6 {[%clk 0:00:12.6]} 88. Ke4 {[%clk
0:00:21.2]} 88... Ke7 {[%clk 0:00:13.1]} 89. Kd5 {[%clk 0:00:22.1]} 89... Kd7
{[%clk 0:00:13.1]} 90. e6+ {[%clk 0:00:22.5]} 90... Ke7 {[%clk 0:00:13.7]} 91.
Ke5 {[%clk 0:00:23.4]} 91... Ke8 {[%clk 0:00:14.2]} 92. Kf6 {[%clk 0:00:24.3]}
92... Kf8 {[%clk 0:00:14.5]} 93. e7+ {[%clk 0:00:25.2]} 93... Ke8 {[%clk
0:00:15.1]} 94. Ke6 {[%clk 0:00:26.1]} 1/2-1/2